bitfinex/quotes_ETHUSD_20240710
["timestamp","ask_amount","ask_price","bid_price","bid_amount"]
[1720585327800,0.25998181,3108.2,3107.1,0.476]
[1720585328046,0.55,3108.1,3107.1,0.476]
[1720585328414,0.25998181,3108.0,3107.1,0.476]
[1720585328732,0.55,3108.1,3107.1,0.476]
[1720585328897,0.25998181,3108.0,3107.1,0.476]
[1720585329697,0.25998181,3107.8,3107.1,0.476]
[1720585329902,0.25998181,3107.8,3107.1,0.16]
[1720585330098,0.25998181,3108.2,3107.1,0.16]
[1720585330295,0.37315491,3108.4,3107.1,2.605]
[1720585330548,0.37315491,3108.4,3107.1,2.921]
[1720585331112,0.25998181,3108.2,3107.1,2.921]
[1720585333505,0.25998181,3108.0,3107.1,2.921]
[1720585333704,0.25998181,3107.8,3107.2,0.2921]
[1720585334050,0.1131731,3108.4,3107.1,0.16]
[1720585334051,0.25998181,3107.6,3107.1,0.16]
[1720585334431,2.3612,3108.0,3107.1,0.16]
[1720585334621,2.62331818,3108.0,3107.1,0.16]
[1720585334818,0.25998181,3107.4,3107.1,0.16]
[1720585335045,0.25998181,3107.2,3107.1,0.16]
[1720585335227,2.62331818,3108.0,3107.1,0.16]
[1720585335228,0.25998181,3107.4,3107.1,0.16]
[1720585335744,0.25998181,3107.2,3107.1,0.16]
[1720585336109,3.26233182,3107.9,3107.1,0.16]
[1720585336110,0.25998181,3107.6,3107.1,0.16]
[1720585336444,0.55,3107.5,3107.1,0.16]
[1720585336849,0.25998181,3107.2,3107.1,0.16]
[1720585337149,0.80998181,3107.2,3107.1,0.16]
[1720585337310,3.12798181,3107.2,3107.1,0.16]
[1720585338142,0.25998181,3106.2,3105.4,2.3124]
[1720585338459,7.46,3107.0,3105.4,2.3124]
[1720585338659,1.11581728,3106.9,3105.0,2.3124]
[1720585338811,3.56081728,3106.8,3105.0,2.3124]
[1720585339010,1.11581728,3106.7,3105.0,2.3124]
[1720585339307,0.25998181,3106.0,3105.0,2.3124]
[1720585339506,0.25998181,3105.8,3105.0,2.3124]
[1720585339955,3.0,3106.2,3105.0,2.3124]
[1720585340156,0.25998181,3106.4,3105.0,2.3124]
[1720585340320,0.55,3106.3,3105.0,2.3124]
[1720585340656,0.25998181,3105.8,3105.0,2.3124]
[1720585341156,2.445,3106.4,3104.2,2.3124]
[1720585341328,0.25998181,3105.4,3104.2,2.3124]
[1720585341532,0.55,3105.3,3104.2,2.3124]
[1720585342454,0.25998181,3105.4,3104.2,2.3124]
[1720585343145,0.25998181,3105.2,3104.2,2.3124]
[1720585343554,0.25998181,3105.6,3104.2,2.3124]
[1720585343959,3.0,3105.8,3104.2,2.3124]
[1720585343960,0.25998181,3105.3,3104.2,2.3124]
[1720585344320,3.0,3105.8,3104.3,0.06441135]
[1720585344321,0.25998181,3105.6,3104.3,0.06441135]
[1720585344525,0.3,3105.7,3104.3,0.29565135]
[1720585344728,0.337436,3106.1,3104.3,6.55465135]
[1720585345274,0.25998181,3106.0,3104.4,2.57697]
[1720585345568,0.337436,3106.1,3104.5,3.06439964]
[1720585346475,0.337436,3106.1,3104.7,3.259]
[1720585346628,0.337436,3106.1,3104.8,3.0]
[1720585346957,0.25998181,3106.0,3104.8,3.0]
[1720585347173,0.337436,3106.1,3104.8,3.0]
[1720585347378,0.337436,3106.1,3104.2,2.3124]
[1720585347527,2.2602,3105.9,3104.2,2.54364]
[1720585347730,0.55,3105.8,3104.2,2.54364]
[1720585348027,0.55,3105.8,3104.2,2.60804921]
[1720585348226,0.55,3105.8,3104.3,0.06440921]
[1720585348425,0.55,3105.8,3104.4,0.26724584]
[1720585348625,0.25998181,3105.9,3104.4,0.33165458]
[1720585348938,0.59741781,3106.1,3104.5,2.49]
[1720585349118,0.59741781,3106.1,3104.6,0.06439817]
[1720585349325,0.55,3106.0,3104.6,3.0]
[1720585349571,0.25998181,3105.6,3104.6,3.0]
[1720585349761,0.55,3106.0,3104.5,2.49]
[1720585350128,0.25998181,3105.4,3104.5,2.49]
[1720585350327,0.80998181,3106.0,3104.6,0.0644088]
[1720585350528,0.25998181,3105.8,3104.6,3.249]
[1720585350893,0.25998181,3105.8,3104.6,3.31340841]
[1720585350894,0.55,3105.7,3104.6,3.31340841]
[1720585351107,0.55,3105.7,3104.6,3.06440841]
[1720585351403,3.337436,3106.1,3104.6,3.0]
[1720585351404,0.25998181,3106.0,3104.6,3.0]
[1720585351585,0.25998181,3105.8,3104.6,3.0]
[1720585352669,0.25998181,3105.8,3104.7,0.06440095]
[1720585352892,0.25998181,3105.8,3104.6,3.0]
[1720585353090,0.25998181,3105.8,3104.5,2.49]
[1720585353091,0.25998181,3105.6,3104.5,5.49]
[1720585353296,0.55,3105.9,3104.5,2.49]
[1720585353454,0.25998181,3105.6,3104.5,2.49]
[1720585354457,0.55,3105.9,3104.5,2.49]
[1720585354659,0.25998181,3105.6,3104.6,0.06440839]
[1720585354884,0.25998181,3105.6,3104.6,3.06440839]
[1720585355308,0.16297436,3105.8,3104.6,3.0]
[1720585355496,0.55,3105.7,3104.5,2.49]
[1720585356164,0.80998181,3106.0,3104.5,2.49]
[1720585356387,0.25998181,3105.8,3104.5,2.49]
[1720585356788,0.80998181,3106.0,3104.5,2.49]
[1720585357674,0.25998181,3105.6,3104.5,2.49]
[1720585358190,0.25998181,3105.8,3104.6,0.0644034]
[1720585358411,0.25998181,3105.8,3104.7,0.25544034]
[1720585358939,0.25998181,3105.8,3104.8,0.06440293]
[1720585360423,0.25998181,3105.8,3104.7,0.25544034]
[1720585360614,0.25998181,3105.6,3104.6,3.0]
[1720585360823,0.25998181,3105.6,3104.5,2.49]
[1720585361017,0.25998181,3105.8,3104.5,2.49]
[1720585361334,0.25998181,3105.8,3104.6,0.249]
[1720585361534,0.25998181,3105.8,3104.7,0.06440314]
[1720585361906,0.25998181,3105.6,3104.6,3.249]
[1720585362118,0.55,3106.0,3104.6,3.0]
[1720585362119,0.25998181,3105.4,3104.6,3.0]
[1720585362634,0.25998181,3105.4,3104.5,2.49]
[1720585363286,0.25998181,3105.2,3104.5,2.49]
[1720585363531,0.25998181,3105.2,3104.0,2.2847]
[1720585363873,0.25998181,3105.2,3104.0,2.6106]
[1720585364244,0.25998181,3105.0,3104.0,2.6106]
[1720585364450,0.25998181,3104.8,3104.0,2.6106]
[1720585364756,0.25998181,3104.8,3104.1,3.26106]
[1720585364934,0.25998181,3104.8,3104.1,3.0]
[1720585365130,0.25998181,3104.8,3104.0,2.2847]
[1720585365733,0.25998181,3104.8,3103.5,2.4925]
[1720585365734,0.25998181,3104.4,3103.5,2.4925]
[1720585366074,0.25998181,3104.4,3103.6,0.24925]
[1720585366633,0.25998181,3104.6,3103.7,0.06443227]
[1720585366833,0.25998181,3104.6,3103.6,0.24925]
[1720585367056,2.59618181,3104.8,3103.7,0.274175]
[1720585367247,1.11634459,3104.7,3103.7,0.274175]
[1720585367456,0.37125264,3104.6,3102.7,2.3138]
[1720585367655,3.39720943,3104.5,3102.7,2.3138]
[1720585367855,0.25998181,3104.2,3102.7,2.3138]
[1720585368170,0.25998181,3104.0,3102.7,2.3138]
[1720585368381,0.25998181,3103.8,3102.7,2.3138]
[1720585369074,0.55,3104.1,3102.6,2.445]
[1720585369075,2.71968181,3104.0,3102.6,2.445]
[1720585369275,0.25998181,3103.8,3102.6,2.445]
[1720585370274,0.25998181,3103.6,3102.6,2.445]
[1720585370575,0.25998181,3103.5,3102.4,2.4267]
[1720585371430,3.0,3103.9,3102.4,2.4267]
[1720585371431,0.25998181,3103.3,3102.4,2.4267]
[1720585371634,0.25998181,3103.3,3102.2,2.445]
[1720585373882,0.54597,3103.8,3102.2,2.445]
[1720585373883,0.25998181,3103.6,3102.2,2.445]
[1720585374076,0.25998181,3103.6,3102.3,0.06444999]
[1720585374574,0.25998181,3103.6,3102.3,3.06444999]
[1720585375078,0.80595181,3103.8,3102.3,3.06444999]
[1720585375236,2.71968181,3104.0,3102.6,2.445]
[1720585375441,2.71968181,3104.0,3102.7,0.2445]
[1720585375636,2.71968181,3104.0,3102.7,3.2445]
[1720585375976,2.71968181,3104.0,3102.8,0.06444248]
[1720585376270,2.71968181,3104.0,3102.7,3.2445]
[1720585376661,0.25998181,3103.8,3102.7,3.2445]
[1720585376838,0.25998181,3103.8,3102.7,3.0]
[1720585377034,2.71968181,3104.0,3102.7,2.3896]
[1720585377240,2.71968181,3104.0,3102.7,5.3896]
[1720585378988,3.05723423,3104.0,3102.7,5.3896]
[1720585379198,2.79725242,3104.0,3102.7,5.3896]
[1720585379377,0.33755242,3104.0,3102.8,0.0644425]
[1720585380695,0.33755242,3104.0,3102.7,5.3896]
[1720585380863,0.59753423,3104.0,3102.7,5.3896]
[1720585381309,0.25998181,3103.8,3102.7,5.3896]
[1720585383613,0.25998181,3103.6,3102.7,5.3896]
[1720585383819,0.25998181,3103.8,3102.7,5.3896]
[1720585384180,0.25998181,3103.6,3102.2,4.7735]
[1720585384380,2.4399,3103.9,3102.2,2.445]
[1720585384623,0.25998181,3103.2,3102.2,2.445]
[1720585385017,0.25998181,3103.2,3102.0,2.4216]
[1720585385326,0.25998181,3103.6,3102.0,2.4216]
[1720585385489,0.25998181,3103.3,3102.0,2.4216]
[1720585385685,0.25998181,3103.3,3102.1,0.24860502]
[1720585385889,0.25998181,3103.3,3102.1,3.24860502]
[1720585386424,0.25998181,3103.0,3102.1,3.24860502]
[1720585387327,0.25998181,3103.2,3102.1,3.24860502]
[1720585387484,0.25998181,3103.2,3102.1,3.0]
[1720585387683,0.25998181,3103.2,3102.0,2.4216]
[1720585389041,0.73686452,3103.7,3101.9,3.0]
[1720585389042,0.25998181,3103.0,3101.9,3.0]
[1720585389252,2.4146,3103.1,3101.8,2.445]
[1720585389450,0.26745818,3103.0,3101.9,0.2445]
[1720585389613,0.26745818,3103.0,3101.6,2.3428]
[1720585389811,0.25998181,3102.6,3101.6,2.3428]
[1720585390035,0.25998181,3102.6,3101.4,2.445]
[1720585390908,0.52743999,3103.0,3101.4,2.445]
[1720585391513,0.52743999,3103.0,3101.4,2.50946589]
[1720585391944,0.52743999,3103.0,3101.5,3.0]
[1720585392148,0.26745818,3103.0,3101.5,0.06446589]
[1720585392363,2.4146,3103.1,3101.8,2.445]
[1720585393252,2.75648181,3103.5,3102.2,2.445]
[1720585393561,2.75648181,3103.5,3102.3,0.06445347]
[1720585393761,2.75648181,3103.5,3102.3,3.06445347]
[1720585394667,0.25998181,3103.2,3102.3,3.0]
[1720585394838,0.25998181,3103.2,3102.2,2.445]
[1720585395433,0.25998181,3103.2,3102.0,3.0]
[1720585395666,0.56938424,3103.4,3101.9,5.37335331]
[1720585396471,0.72938424,3103.4,3101.9,5.37335331]
[1720585396850,0.16,3103.4,3101.9,7.95241331]
[1720585397174,0.16,3103.4,3102.2,2.445]
[1720585397369,0.16,3103.4,3102.3,0.06444712]
[1720585397746,0.16,3103.4,3102.3,3.06444712]
[1720585400061,0.16,3103.4,3102.3,5.64317712]
[1720585400230,0.16,3103.4,3102.6,2.445]
[1720585400431,0.16,3103.4,3103.0,2.445]
[1720585400628,0.16,3103.4,3103.1,0.06443464]
[1720585400831,0.16,3103.4,3102.8,3.0]
[1720585401032,0.16,3103.4,3102.9,0.3]
[1720585401254,0.16,3103.4,3102.7,3.0]
[1720585401474,0.16,3103.4,3102.6,2.445]
[1720585404146,0.16,3103.4,3102.2,2.445]
[1720585404373,0.70841999,3103.4,3102.2,2.445]
[1720585404575,1.11677179,3103.3,3102.0,2.3898]
[1720585404948,0.70841999,3103.4,3102.0,2.3898]
[1720585405146,1.11679852,3103.3,3102.0,2.3898]
[1720585405449,0.18252185,3103.2,3102.1,0.24542536]
[1720585405645,0.70841999,3103.4,3102.1,0.24542536]
[1720585405853,1.11682302,3103.3,3101.9,3.0]
[1720585406156,0.70841999,3103.4,3101.8,5.445]
[1720585406537,1.11682497,3103.3,3101.8,5.445]
[1720585406735,0.70841999,3103.4,3101.8,5.445]
[1720585406973,1.11682491,3103.3,3101.8,5.445]
[1720585407173,1.11682491,3103.2,3101.8,5.445]
[1720585407392,1.1168207,3103.3,3102.2,2.445]
[1720585407540,0.16,3103.4,3102.3,0.2445]
[1720585407890,1.11678124,3103.3,3102.3,0.2445]
[1720585408049,0.41998181,3103.4,3102.3,3.2445]
[1720585408438,1.11678906,3103.3,3102.3,3.2445]
[1720585408678,0.41998181,3103.4,3102.3,3.2445]
[1720585408974,1.11679527,3103.3,3102.3,3.2445]
[1720585409173,0.41998181,3103.4,3102.3,3.2445]
[1720585409338,0.25998181,3103.2,3102.3,3.2445]
[1720585409989,0.41998181,3103.4,3102.3,3.2445]
[1720585410196,1.1167948,3103.3,3102.3,3.2445]
[1720585410463,0.68242181,3103.4,3102.3,3.2445]
[1720585410663,1.11679376,3103.3,3102.3,3.2445]
[1720585410846,0.25998181,3103.2,3102.3,3.0]
[1720585411052,0.25998181,3103.2,3102.2,2.445]
[1720585412275,0.68242181,3103.4,3102.2,2.445]
[1720585412479,1.11679679,3103.3,3102.3,0.2445]
[1720585412640,0.25998181,3103.2,3102.3,3.2445]
[1720585414763,0.68242181,3103.4,3102.3,3.2445]
[1720585415001,1.11678711,3103.3,3102.3,3.2445]
[1720585415189,0.68242181,3103.4,3102.3,3.0]
[1720585415505,0.25998181,3103.0,3102.2,2.445]
[1720585416159,0.25998181,3103.0,3102.2,2.6895]
[1720585416673,0.25998181,3103.0,3102.3,3.0]
[1720585416875,0.25998181,3103.2,3102.3,3.0]
[1720585417077,1.11687865,3103.1,3102.3,3.0]
[1720585417399,1.11687973,3103.0,3102.3,3.0]
[1720585417557,0.25998181,3103.2,3102.3,3.0]
[1720585417757,1.11683975,3103.1,3102.3,3.0]
[1720585417957,0.25998181,3103.2,3102.2,2.445]
[1720585418186,1.11684675,3103.1,3102.2,2.445]
[1720585418390,0.25998181,3103.2,3102.2,2.445]
[1720585418559,1.11685314,3103.1,3102.2,2.445]
[1720585418762,0.25998181,3103.2,3102.2,2.6895]
[1720585419008,1.11685401,3103.1,3102.3,3.0]
[1720585419209,0.25998181,3103.2,3102.3,3.0]
[1720585419374,1.11685984,3103.1,3102.3,3.0]
[1720585419580,0.25998181,3103.2,3102.3,3.0]
[1720585419796,0.25998181,3103.0,3102.3,3.0]
[1720585420812,0.23744754,3103.2,3102.3,3.0]
[1720585420963,1.1168369,3103.1,3102.3,3.0]
[1720585421288,0.68242181,3103.4,3102.3,3.0]
[1720585421488,1.11680874,3103.3,3102.3,3.0]
[1720585421793,0.68242181,3103.4,3102.3,3.0]
[1720585421794,1.11680874,3103.2,3102.3,3.0]
[1720585421992,1.11680874,3103.1,3102.3,3.0]
[1720585422200,0.25998181,3103.2,3102.2,2.445]
[1720585422505,0.25998181,3103.0,3101.9,3.0]
[1720585422716,0.25998181,3103.0,3101.9,0.16742269]
[1720585422898,0.25998181,3103.0,3101.9,3.16742269]
[1720585423218,0.25998181,3103.0,3101.9,3.0]
[1720585423382,0.25998181,3103.0,3101.8,5.445]
[1720585423714,1.69205193,3102.8,3101.6,2.2712]
[1720585424004,1.11687634,3102.7,3101.6,2.2712]
[1720585425165,2.80894922,3102.7,3101.2,2.4413]
[1720585425369,1.11687634,3102.6,3101.2,5.4413]
[1720585425597,3.95247288,3102.9,3101.3,2.80627715]
[1720585425918,1.51229331,3102.8,3101.4,3.0]
[1720585426149,1.11704602,3102.7,3101.3,3.0]
[1720585426281,0.25998181,3102.5,3101.3,3.0]
[1720585426482,1.11709365,3102.4,3101.3,3.0]
[1720585426715,0.69475383,3102.7,3101.2,7.18955312]
[1720585426928,1.11707013,3102.6,3101.3,1.18699549]
[1720585427083,0.69475383,3102.7,3101.3,3.06447092]
[1720585427424,3.95247288,3102.9,3101.4,2.445]
[1720585427425,1.1170311,3102.6,3101.4,2.445]
[1720585427581,2.2604,3102.9,3101.4,5.50946382]
[1720585427777,1.11697469,3102.8,3101.8,2.445]
[1720585428015,0.25998181,3103.2,3101.8,2.50945585]
[1720585428215,1.11686453,3103.1,3101.9,3.0]
[1720585428520,2.4651,3103.3,3102.0,0.06445551]
[1720585428728,1.11686566,3103.2,3102.1,0.30644555]
[1720585429024,0.16,3103.4,3102.3,2.2901]
[1720585429229,0.16,3103.4,3102.4,0.06444738]
[1720585429612,0.16,3103.4,3102.3,5.2901]
[1720585429810,0.16,3103.4,3102.3,5.35454621]
[1720585431065,0.16,3103.4,3103.2,2.4989]
[1720585431183,0.16,3103.4,3103.3,0.06442576]
[1720585431589,0.16,3103.4,3103.3,3.0]
[1720585432131,0.16,3103.4,3103.3,5.445]
[1720585432419,0.16,3103.4,3103.3,5.50942749]
[1720585432645,0.16,3103.4,3103.3,8.63732749]
[1720585432786,7.46,3105.1,3103.5,2.57772]
[1720585432991,2.3893,3105.3,3104.3,2.445]
[1720585433231,7.46,3105.9,3104.4,0.3089119]
[1720585433232,0.25998181,3105.6,3104.4,0.3089119]
[1720585433500,2.64928181,3105.8,3104.4,0.3089119]
[1720585433725,2.3893,3105.8,3104.7,2.445]
[1720585433924,1.94679579,3106.1,3104.8,0.06440566]
[1720585434090,1.94679579,3106.1,3104.9,0.25094057]
[1720585434091,1.11593109,3106.0,3104.9,0.25094057]
[1720585434291,0.45466139,3106.1,3105.0,0.06439921]
[1720585434525,2.64928181,3106.3,3105.0,0.06439921]
[1720585434689,2.64928181,3106.3,3105.1,4.9439]
[1720585434889,0.25998181,3106.3,3105.2,0.06439485]
[1720585435328,0.25998181,3106.7,3105.1,4.9439]
[1720585435698,2.3204,3106.8,3105.1,4.9439]
[1720585435699,0.25998181,3106.2,3105.1,4.9439]
[1720585435903,0.25998181,3106.2,3105.1,2.445]
[1720585437127,0.25998181,3106.6,3105.1,2.445]
[1720585437488,3.0,3106.7,3105.1,2.445]
[1720585437489,0.25998181,3106.4,3105.1,2.445]
[1720585439253,0.25998181,3106.6,3105.2,0.06439183]
[1720585439445,2.3204,3106.8,3105.3,2.3206]
[1720585439634,2.66328181,3107.3,3105.5,2.445]
[1720585439837,2.66328181,3107.3,3105.6,0.06438485]
[1720585440061,0.26632818,3107.2,3105.7,0.25093849]
[1720585440470,0.25998181,3106.9,3105.7,0.25093849]
[1720585441258,3.25998181,3107.1,3105.7,0.25093849]
[1720585441472,3.0,3107.1,3105.7,0.25093849]
[1720585441791,0.32663282,3107.0,3105.8,0.32509385]
[1720585441939,0.52630999,3107.2,3105.9,2.445]
[1720585442139,0.25998181,3107.2,3106.0,0.27700939]
[1720585442382,0.25998181,3107.2,3106.0,3.27700939]
[1720585442584,0.25998181,3107.2,3106.0,3.0]
[1720585442744,0.25998181,3107.0,3106.0,3.0]
[1720585442943,0.25998181,3107.0,3105.9,2.445]
[1720585443138,2.4033,3107.3,3105.9,2.445]
[1720585443139,0.25998181,3107.2,3105.9,2.445]
[1720585443378,0.50031181,3107.2,3106.0,0.2445]
[1720585443694,0.50031181,3107.2,3106.1,2.3995]
[1720585443695,0.24033,3107.2,3106.1,2.3995]
[1720585443841,0.33736362,3107.5,3106.2,0.06437587]
[1720585444192,0.25998181,3107.6,3106.1,5.3995]
[1720585444193,0.25998181,3107.2,3106.1,5.3995]
[1720585444539,0.25998181,3107.0,3106.1,2.3995]
[1720585444769,0.25998181,3107.0,3106.2,3.0]
[1720585444996,0.25998181,3107.2,3106.0,3.0]
[1720585445177,0.25998181,3107.2,3105.7,3.0]
[1720585445712,3.0,3107.7,3105.6,5.50937674]
[1720585445713,0.25998181,3107.0,3105.6,5.50937674]
[1720585446310,0.25998181,3106.8,3105.6,5.445]
[1720585446513,3.0,3107.7,3105.6,5.445]
[1720585446514,0.25998181,3107.4,3105.6,5.50938143]
[1720585446694,0.25998181,3107.4,3105.6,8.08536143]
[1720585446900,0.25998181,3107.4,3106.0,2.445]
[1720585447065,0.25998181,3107.4,3106.1,2.3849723]
[1720585447265,0.25998181,3107.4,3106.1,5.3849723]
[1720585447502,0.25998181,3107.2,3106.1,5.3206]
[1720585447715,0.25998181,3107.4,3106.1,5.38497235]
[1720585449219,0.25998181,3107.6,3106.1,5.38497235]
[1720585449775,2.4078,3107.8,3106.5,2.445]
[1720585449975,2.4078,3107.8,3106.6,0.06436238]
[1720585450282,0.24078,3107.7,3106.6,3.25093624]
[1720585450488,2.63438181,3108.2,3106.6,3.25093624]
[1720585450801,2.3744,3108.2,3106.6,3.25093624]
[1720585451201,2.63438181,3108.2,3106.9,2.445]
[1720585451388,0.25998181,3108.0,3106.9,5.445]
[1720585451587,0.25998181,3107.8,3106.9,3.0]
[1720585451782,0.25998181,3107.8,3106.5,2.445]
[1720585452277,0.25998181,3107.8,3106.5,5.445]
[1720585453317,0.25998181,3108.0,3106.5,8.08457409]
[1720585453518,0.25998181,3107.8,3106.5,8.02021]
[1720585453882,0.25998181,3107.8,3106.5,5.445]
[1720585454315,0.25998181,3107.8,3106.5,8.08458885]
[1720585454495,0.82116581,3108.0,3106.5,8.08458885]
[1720585454696,0.23744,3108.1,3106.9,2.445]
[1720585454891,2.63438181,3108.2,3106.5,3.06435885]
[1720585454892,2.63438181,3108.2,3106.7,3.0]
[1720585455079,0.25998181,3108.0,3106.8,0.3]
[1720585455285,0.25998181,3108.0,3106.7,3.0]
[1720585455680,0.26343818,3108.1,3106.6,5.445]
[1720585456019,0.25998181,3108.0,3106.6,5.445]
[1720585456581,0.25998181,3108.0,3106.7,3.0]
[1720585456805,2.3744,3108.2,3106.6,2.445]
[1720585456984,0.23744,3108.1,3106.6,2.445]
[1720585457330,0.23744,3108.1,3106.6,5.02014]
[1720585457622,0.23744,3108.1,3106.7,3.0]
[1720585457780,0.23744,3108.1,3106.6,2.445]
[1720585457781,0.55,3108.0,3106.6,2.445]
[1720585458281,0.23744,3108.1,3106.6,2.445]
[1720585458488,2.63438181,3108.2,3106.6,5.02015]
[1720585458702,0.25998181,3108.0,3106.7,3.0]
[1720585459179,2.63438181,3108.2,3106.7,3.0]
[1720585459383,0.25998181,3108.0,3106.7,3.0]
[1720585459910,0.25998181,3108.0,3106.6,5.02016]
[1720585460095,0.25998181,3108.0,3106.7,3.0]
[1720585461085,2.63438181,3108.2,3106.7,3.0]
[1720585461287,2.3744,3108.2,3107.0,2.445]
[1720585461512,2.3744,3108.2,3107.1,2.3857]
[1720585461713,2.3744,3108.2,3107.1,5.3857]
[1720585461898,0.1131731,3108.4,3107.4,2.445]
[1720585462613,0.25998181,3108.2,3107.4,3.0]
[1720585462786,0.25998181,3108.0,3106.7,2.4149]
[1720585463132,0.1131731,3108.4,3106.7,2.4149]
[1720585463133,0.25998181,3107.8,3106.7,5.4149]
[1720585463297,0.25998181,3107.8,3106.7,2.4149]
[1720585463932,0.25998181,3107.8,3106.6,2.445]
[1720585464387,2.4617,3107.9,3106.6,2.445]
[1720585464388,0.25998181,3107.6,3106.6,2.445]
[1720585464581,0.25998181,3107.6,3106.7,0.2445]
[1720585464812,0.25998181,3107.8,3106.7,3.2445]
[1720585465108,2.4617,3107.9,3106.7,3.2445]
[1720585466426,2.72168181,3107.9,3106.7,3.2445]
[1720585466591,2.72168181,3107.9,3106.7,3.0]
[1720585466923,2.72168181,3107.9,3106.6,2.445]
[1720585468445,2.72168181,3107.9,3106.6,5.02016]
[1720585468605,2.72168181,3107.9,3106.7,3.0]
[1720585469203,2.4617,3107.9,3106.7,3.0]
[1720585469444,2.4617,3107.9,3106.7,5.63941827]
[1720585469600,0.25998181,3108.1,3106.8,2.4106]
[1720585469804,0.1131731,3108.4,3107.4,2.445]
[1720585470022,0.1131731,3108.4,3107.5,2.6551]
[1720585470323,0.1131731,3108.4,3107.6,3.06434338]
[1720585470708,0.1131731,3108.4,3107.6,3.0]
[1720585471203,0.1131731,3108.4,3107.5,0.2445]
[1720585471403,0.1131731,3108.4,3107.2,3.0]
[1720585472422,0.37315491,3108.4,3107.2,3.0]
[1720585472623,0.37315491,3108.4,3107.1,5.3232]
[1720585473336,0.1131731,3108.4,3107.4,2.57448]
[1720585473574,0.1131731,3108.4,3107.5,3.257448]
[1720585474109,0.1131731,3108.4,3107.6,0.06434506]
[1720585474343,0.1131731,3108.4,3107.5,3.257448]
[1720585476179,0.1131731,3108.4,3107.6,3.0]
[1720585476324,0.1131731,3108.4,3107.5,0.257448]
[1720585476514,0.1131731,3108.4,3107.2,3.0]
[1720585476714,0.1131731,3108.4,3107.1,5.3232]
[1720585476915,0.1131731,3108.4,3107.1,2.3232]
[1720585477122,2.2773,3108.3,3107.0,2.445]
[1720585477326,2.2773,3108.3,3107.1,0.2445]
[1720585477327,0.5250273,3108.2,3107.1,0.2445]
[1720585477551,0.5250273,3108.2,3106.7,2.4946]
[1720585477552,1.64012748,3108.2,3106.7,2.4946]
[1720585477768,1.11511489,3108.1,3106.7,2.4946]
[1720585477944,0.5250273,3108.2,3106.7,2.4946]
[1720585478322,1.11511232,3108.1,3106.8,1.12055775]
[1720585478523,0.5250273,3108.2,3106.8,3.0]
[1720585478715,1.11511658,3108.1,3106.7,5.4946]
[1720585478959,0.5250273,3108.2,3106.8,1.12056747]
[1720585479145,1.11512257,3108.1,3106.8,3.0]
[1720585479340,0.5250273,3108.2,3106.9,1.12057036]
[1720585479547,1.11512493,3108.1,3106.8,3.0]
[1720585479822,0.5250273,3108.2,3106.9,1.12056877]
[1720585480022,1.11512945,3108.1,3106.8,3.0]
[1720585480258,0.5250273,3108.2,3106.9,1.12056327]
[1720585480566,0.5250273,3108.2,3107.0,1.18487324]
[1720585480567,1.11506789,3108.1,3107.0,1.18487324]
[1720585480726,0.25998181,3108.2,3107.0,0.06436068]
[1720585480927,0.25998181,3108.2,3106.9,0.66382483]
[1720585481257,2.2773,3108.3,3107.0,5.31062916]
[1720585481558,2.2773,3108.3,3107.1,2.8011973]
[1720585481758,2.2773,3108.3,3107.2,1.12044109]
[1720585482063,2.2773,3108.3,3107.1,3.0]
[1720585482265,0.25998181,3108.2,3107.2,1.12044062]
[1720585482514,2.2773,3108.3,3107.1,3.0]
[1720585482806,2.2773,3108.3,3107.2,1.12043396]
[1720585483001,2.2773,3108.3,3107.1,3.0]
[1720585483292,2.2773,3108.3,3107.2,2.8010841]
[1720585483504,2.2773,3108.3,3107.3,4.12043364]
[1720585483744,2.2773,3108.3,3107.1,6.23856483]
[1720585483853,2.2773,3108.3,3107.2,2.80103105]
[1720585484053,2.2773,3108.3,3107.3,5.80103105]
[1720585484294,2.2773,3108.3,3107.3,3.0]
[1720585484493,2.2773,3108.3,3107.2,3.66382483]
[1720585484704,2.2773,3108.3,3107.3,2.80097133]
[1720585484856,2.2773,3108.3,3107.4,1.12038853]
[1720585485055,2.2773,3108.3,3107.2,3.66382483]
[1720585485266,2.2773,3108.3,3107.3,2.86529931]
[1720585485550,2.2773,3108.3,3107.2,5.57464]
[1720585485756,2.2773,3108.3,3107.4,3.0]
[1720585486308,0.1131731,3108.4,3107.3,3.0643476]
[1720585486513,0.1131731,3108.4,3107.6,2.57426]
[1720585486667,7.79713255,3109.2,3107.6,2.57426]
[1720585486668,0.33713255,3109.2,3108.3,2.445]
[1720585486854,9.9562,3109.9,3108.3,5.445]
[1720585487056,1.11456334,3109.8,3108.3,5.445]
[1720585487401,0.25998181,3109.6,3108.3,2.445]
[1720585487556,1.11456334,3109.5,3108.3,2.445]
[1720585488404,3.49266334,3109.4,3107.9,7.12507519]
[1720585488550,2.445,3110.0,3107.9,3.0]
[1720585488551,2.3781,3108.9,3107.9,3.0]
[1720585488751,2.3781,3108.9,3107.5,5.45270704]
[1720585488752,2.3781,3108.9,3107.6,3.0]
[1720585490399,2.3781,3108.9,3107.6,5.5743]
[1720585491385,2.3781,3108.9,3107.7,2.57424]
[1720585491602,2.3781,3108.9,3107.8,3.0]
[1720585492073,2.3781,3108.9,3108.0,2.57396]
[1720585492461,2.3781,3108.9,3107.9,2.445]
[1720585493366,2.3781,3108.9,3107.9,5.01908]
[1720585493715,2.3781,3108.9,3108.0,3.0]
[1720585494011,2.3781,3108.9,3107.9,2.445]
[1720585494769,2.2664,3109.3,3107.9,0.06433629]
[1720585494969,2.2664,3109.3,3108.3,2.445]
[1720585495199,2.2664,3109.3,3108.3,5.445]
[1720585496462,2.2664,3109.3,3108.3,2.445]
[1720585496905,0.25998181,3109.2,3108.3,2.445]
[1720585497066,2.2664,3109.3,3108.3,2.445]